Cogmind - Beta 16 @@@ ROGUE MODE // 2025.11.09 @ 19:55:09 Player: Picayune Result: Destroyed by D-53 Grenadier with Mini Grenade Launcher Performance ------------- Evolutions (0) 0 Regions Visited (2) 400 Robots Destroyed (17) 85 Value Destroyed (274) 274 Prototype IDs (0) 0 Alien Tech Used (0) 0 Bonus (0) 0 TOTAL SCORE: 759 Bonus ------- None Cogmind --------- Core Integrity 0/250 Matter 300/300 Energy 98/100 System Corruption 0% Temperature Cool (0) Movement Core (50) Location -10/Mines Parts ------- > --- POWER (1) -------- (None) > --- PROPULSION (2) --- (None) > --- UTILITY (2) ------ (None) > --- WEAPON (2) ------- (None) > --- INVENTORY (5) ---- Light Treads Aluminum Leg Improved Heat Sink Light Assault Rifle Grenade Launcher Peak State ------------ > --- POWER ------------ Ion Engine > --- PROPULSION ------- Light Treads Compact Wheel > --- UTILITY ---------- Large Storage Unit Core Shielding > --- WEAPON ----------- Light Assault Rifle Light Assault Rifle > --- INVENTORY -------- Light Ion Engine Aluminum Leg Aluminum Leg Aluminum Leg Improved Heat Sink Experimental Sensor Array EM Pulse Gun Small Laser Light Assault Rifle Grenade Launcher [Rating: 9] Favorites ----------- Power Ion Engine Engine Ion Engine Propulsion Light Treads Treads Light Treads Wheel Compact Wheel Utility Large Storage Unit Device ECM Suite Storage Large Storage Unit Protection Core Shielding Weapon Light Assault Rifle Ballistic Gun Light Assault Rifle Launcher Grenade Launcher Build | -11 -10 -10 ------- Run | Yrd Mat Min Slots Evolved . | . . . Power . | . . . Propulsion . | . . . Utility . | . . . Weapon . | . . . Parts Attached 22 | 7 3 12 Power 4 | 1 . 3 Engine 4 | 1 . 3 Core . | . . . Reactor . | . . . Propulsion 6 | 2 . 4 Treads 4 | 1 . 3 Leg . | . . . Wheel 2 | 1 . 1 Hover . | . . . Flight . | . . . Utility 5 | 2 2 1 Device 2 | 1 1 . Storage 2 | 1 1 . Processor . | . . . Hackware . | . . . Protection 1 | . . 1 Artifact . | . . . Weapon 7 | 2 1 4 Energy Gun . | . . . Energy Cannon . | . . . Ballistic Gun 6 | 2 . 4 Ballistic Cannon . | . . . Launcher 1 | . 1 . Special Weapon . | . . . Impact Weapon . | . . . Slashing Weapon . | . . . Piercing Weapon . | . . . Special Melee Weapon . | . . . Unidentified Prototypes . | . . . Parts Lost 12 | . . 12 Power 2 | . . 2 Propulsion 4 | . . 4 Utility 1 | . . 1 Weapon 5 | . . 5 Highest Loss Streak 8 | . . 8 To Critical Strikes . | . . . Average Backups 8 | 3 7 9 Power 1 | . 1 1 Propulsion 3 | 2 3 3 Utility . | . . . Weapon 3 | . 1 3 Tool/Special . | . . . Unused Backups 9 | . . 9 Power . | . . . Propulsion 5 | . . 5 Utility 2 | . . 2 Weapon 2 | . . 2 Tool/Special . | . . . Average Slot Usage (%) 99 | . 100 98 Engine 13 | . 14 13 Treads 17 | . 14 18 Wheel 10 | . 14 9 Device 6 | . 14 4 Storage 14 | . 14 14 Protection 7 | . . 9 Ballistic Gun 24 | . 28 23 Launcher 3 | . . 4 Peak Build Rating 9 | 7 7 9 Average Rating 7 | 5 7 7 On Entrance 4 | . 7 7 Avg Prop Armor Cover (%) 12 | 14 14 11 Naked Turns 2 | . . 2 Heaviest Build 31 | 13 31 30 Greatest Support 40 | 20 16 40 Greatest Overweight (x) 3 | 3 1 1 Average Overweight (x) . | . . . Largest Inventory Capacity 15 | 8 15 15 Average Capacity 13 | 7 13 14 Most Carried 14 | 5 8 14 Average Carried 8 | 3 7 9 Final Capacity 15 | 8 15 5 Final Carried 8 | 5 8 5 Class Distribution -------------------- 100% | Mutant Dominant Class ---------------- Mutant | -10/Materials Mutant | -10/Mines Resources | -11 -10 -10 ----------- Run | Yrd Mat Min Matter Collected 557 | 292 9 256 Remotely . | . . . Salvage Created 410 | 60 21 329 Parts 33 | 7 7 19 Haulers Intercepted . | . . . Recyclers Shooed 1 | 1 . . Parts Field Recycled . | . . . Retrieved Matter . | . . . Parts Self-Destructed . | . . . Prevented . | . . . Parts Restored . | . . . Kills | -11 -10 -10 ------- Run | Yrd Mat Min Combat Hostiles Destroyed 14 | . 3 11 Guns 11 | . 1 10 AOE 3 | . 2 1 Classes Destroyed 3 | 1 1 1 Tunneler 3 | 3 . . Swarmer 9 | . 3 6 Grunt 4 | . . 4 Best Kill Streak 3 | 1 3 3 Combat Bots Only 3 | . 3 3 Max Kills in Single Turn 3 | 1 3 1 Gunslinging . | . . . Exploded 2 | . 2 1 Melee . | . . . Uniques/NPCs Destroyed 1 | . . 1 YI-UF0 (-10/Mines) Combat | -11 -10 -10 -------- Run | Yrd Mat Min Hostile Shots Fired 80 | . 1 79 Missed 16 | . . 16 Hits 64 | . 1 63 Projectile 64 | . 1 63 AOE 30 | . . 30 Damage Taken 1460 | . 6 1454 Core 280 | . . 280 Absorbed by Shields . | . . . Redirected to Shielding 30 | . . 30 Core Remaining (%) 100 | 100 . . Volleys Fired 45 | 11 1 33 Largest 2 | 2 2 2 Hottest 50 | 40 50 50 Shots Fired 89 | 22 2 65 Gun 84 | 22 1 61 Cannon . | . . . Launcher 5 | . 1 4 Special . | . . . Kinetic 84 | 22 1 61 Thermal . | . . . Explosive 5 | . 1 4 Electromagnetic . | . . . Robot Hit Streak 8 | 4 2 8 Robot Miss Streak 2 | 2 . 2 Penetration Max . | . . . Secondary Targets . | . . . Shots Hit Robots 58 | 11 1 46 Core Hits 34 | 5 3 26 Critical Kills . | . . . Critical Parts Destroyed . | . . . Critical Strikes . | . . . Melee Attacks . | . . . Impact . | . . . Slashing . | . . . Piercing . | . . . Sneak Attacks . | . . . Combat Hostiles . | . . . Follow-up Attacks . | . . . Damage Inflicted 580 | 93 89 398 Guns 436 | 93 8 335 Cannons . | . . . Explosions 144 | . 81 63 Melee . | . . . Ramming . | . . . Kinetic 436 | 93 8 335 Thermal . | . . . Explosive 144 | . 81 63 Electromagnetic . | . . . Impact . | . . . Slashing . | . . . Piercing . | . . . Highest Corruption . | . . . Average Corruption . | . . . Corruption Purged . | . . . Corruption Blocked . | . . . Overload Shots . | . . . Overflow Damage . | . . . Projectiles . | . . . Explosions . | . . . Melee . | . . . Knockbacks . | . . . Impact . | . . . Kinetic . | . . . Secondary . | . . . Self-Inflicted Damage . | . . . Shots . | . . . Rammed . | . . . Targets Rammed . | . . . Kicked . | . . . Crushed . | . . . Highest Temperature 20 | . 10 20 Average Temperature 10 | . 7 10 Received Heat Transfer 156 | . . 156 Siege Activations . | . . . Martial Activations . | . . . Shielding Activations . | . . . Robots Disrupted . | . . . Combat Hostiles . | . . . Robots Corrupted . | . . . Combat Hostiles . | . . . Parts Fried . | . . . Impact Corruptions . | . . . Robots Melted . | . . . Combat Hostiles . | . . . Parts Melted . | . . . Heat Transferred . | . . . Parts Sabotaged . | . . . Parts Stolen . | . . . Parts Stripped . | . . . Power Chain Reactions . | . . . Alert | -11 -10 -10 ------- Run | Yrd Mat Min Maximum Alert Level . | . . . Low Security (%) 100 | 100 100 100 Level 1 . | . . . Level 2 . | . . . Level 3 . | . . . Level 4 . | . . . Level 5 . | . . . High Security . | . . . Max Security . | . . . Peak Influence 141 | 5 76 141 Initial 21 | . 3 21 Average 27 | . 9 37 Influence Increases 338 | 15 81 242 Destroy 0b10 Robot/C 260 | . 60 200 Destroy 0b10 Robot/NC 15 | 15 . . Destroy Leader 50 | . 10 40 Successful Hack 5 | . 5 . Destroy Structure 8 | . 6 2 Influence Decreases 338 | 10 30 298 Entered New Map 37 | . 2 35 Time Decay 239 | 10 28 201 Lost Part 62 | . . 62 Squads Dispatched 1 | . 1 . Investigation . | . . . Extermination . | . . . Reinforcement 1 | . 1 . Assault . | . . . Garrison . | . . . Intercept . | . . . Searches Triggered . | . . . Construction Impeded . | . . . Haulers Reinforced . | . . . Active Scanning Responses . | . . . Cargo Convoy Interrupts . | . . . Stealth | -11 -10 -10 --------- Run | Yrd Mat Min Distress Signals . | . . . Communications Jammed . | . . . Distress Signals . | . . . Times Spotted 23 | . 5 18 Peak Tracking Total 4 | . 4 3 Tactical Retreats 4 | . . 4 ECM-based Alert Blocks 5 | . . 5 Traps | -11 -10 -10 ------- Run | Yrd Mat Min Traps Triggered . | . . . Indirectly . | . . . Trap Hack Attempts . | . . . Triggered . | . . . Disarmed . | . . . Reprogrammed . | . . . Reused . | . . . Traps Extracted . | . . . Installed . | . . . Triggered . | . . . Machines | -11 -10 -10 ---------- Run | Yrd Mat Min Machines Disabled . | . . . Max in Single Turn . | . . . Machines Repaired . | . . . Machines Dismantled . | . . . Machines Sabotaged . | . . . Overloaded Fab Kills . | . . . Hacking | -11 -10 -10 --------- Run | Yrd Mat Min Machines Accessed 1 | . 1 . Terminals 1 | . 1 . Fabricators . | . . . Repair Stations . | . . . Recycling Units . | . . . Scanalyzers . | . . . Garrison Access . | . . . Total Hacks 3 | . 3 . Successful 3 | . 3 . Failed . | . . . Catastrophic . | . . . Database Lockouts . | . . . Manual 3 | . 3 . Terminals 3 | . 3 . Fabricators . | . . . Repair Stations . | . . . Recycling Units . | . . . Scanalyzers . | . . . Garrison Access . | . . . Terminal Hacks . | . . . Fabricator Hacks . | . . . Repair Station Hacks . | . . . Recycling Unit Hacks . | . . . Scanalyzer . | . . . Garrison Access Hacks . | . . . Unauthorized Hacks 3 | . 3 . Terminals 3 | . 3 . Track 1 | . 1 . Botnet 1 | . 1 . Operators 1 | . 1 . Fabricators . | . . . Repair Stations . | . . . Recycling Units . | . . . Scanalyzers . | . . . Garrison Access . | . . . Data Cores Recovered . | . . . Used . | . . . Hacking Detections . | . . . Full Trace Events . | . . . Feedback Events . | . . . Feedback Blocked . | . . . Robot Schematics Acquired . | . . . Robots Built . | . . . Authchips . | . . . Time . | . . . Total Robot Build Rating . | . . . Part Schematics Acquired . | . . . Parts Built . | . . . Authchips . | . . . Time . | . . . Total Part Build Rating . | . . . Part Studies Acquired . | . . . Parts Repaired . | . . . Time . | . . . Parts Recycled . | . . . Recycled Matter . | . . . Retrieved Matter . | . . . Retrieved Components . | . . . Parts Scanalyzed . | . . . Part Schematics Acquired . | . . . Parts Damaged . | . . . Bothacking | -11 -10 -10 ------------ Run | Yrd Mat Min Used RIF Installer . | . . . Robots Hacked . | . . . Non-combat . | . . . Combat . | . . . Robot Hacks Applied . | . . . Relay Couplers Released . | . . . Fabnet Peak Effective % . | . . . Robots Rewired . | . . . Allies Hacked . | . . . Hacks Repelled . | . . . Allies | -11 -10 -10 -------- Run | Yrd Mat Min Total Allies . | . . . Largest Group . | . . . Highest-Rated Group . | . . . Highest-Rated Ally . | . . . Total Orders . | . . . Ally Attacks . | . . . Total Damage . | . . . Kills . | . . . Allies Corrupted . | . . . Allies Melted . | . . . Intel | -11 -10 -10 ------- Run | Yrd Mat Min Active Infowar (turns) 502 | 9 225 268 Seismic 14 | 9 5 . ECM 488 | . 220 268 Robot Analysis Total . | . . . Derelict Logs Recovered 1 | . . 1 Drone Launches . | . . . Drone Recoveries . | . . . Exploration | -11 -10 -10 ------------- Run | Yrd Mat Min Turns Passed 1153 | 138 225 790 Spaces Moved 678 | 86 156 436 Core 23 | 17 . 6 Treads 197 | 2 . 195 Legs . | . . . Wheels 458 | 67 156 235 Hover . | . . . Flight . | . . . Fastest Speed 50 | 50 100 50 Average Speed 132 | 104 112 144 Slowest Speed 240 | 200 115 240 Overloaded Moves . | . . . Propulsion Burnouts . | . . . Robots Hopped . | . . . Potential Cave-ins . | . . . Cave-ins Triggered . | . . . Exploration Rate (%) 35 | 4 29 72 Regions Visited 2 Branch Regions 1 Pre-discovered Areas 2 | . . 2 Known Exits Taken . | . . . Unknown Exits Taken 2 | 1 1 . Scrap Searched 2 | . . 2 Spaces Dug . | . . . Terrain Destroyed 19 | . 6 13 Melee . | . . . Projectile . | . . . AOE 19 | . 6 13 Terrain Rammed . | . . . Walls Destroyed . | . . . Machines Disabled . | . . . Actions | -11 -10 -10 --------- Run | Yrd Mat Min Total 854 | 112 203 539 Wait 88 | 4 39 45 Move 676 | 85 155 436 Hop . | . . . Pick Up 16 | 5 3 8 Fast Attach 7 | 7 . . Attach 9 | . . 9 Detach . | . . . Swap 11 | . 4 7 Drop 2 | . 1 1 Fire 45 | 11 1 33 Melee . | . . . Ram . | . . . Kick . | . . . Crush . | . . . Escape Stasis . | . . . Rewire . | . . . Trap . | . . . Miscellaneous . | . . . Route ------- -11/Scrapyard -10/Materials -10/Mines (discovered 2 exits: [*Mat] / [*Sub]) History --------- Turn | Location | Event 24 | -11/Scrapyard | Discovered new exit (range 15) 139 | -11/Scrapyard | Entered Materials 309 | -10/Materials | Build established: Mutant 342 | -10/Materials | Discovered new exit (range 16) 364 | -10/Materials | Entered Mines 514 | -10/Mines | Learned location of Recycling (-7) 678 | -10/Mines | Destroyed YI-UF0 707 | -10/Mines | Lost 8 parts (2p2n1u3w) 751 | -10/Mines | Assembled infested the area 883 | -10/Mines | Found a damaged Exp. Sensor Array with a note attached 886 | -10/Mines | Found Prototype Device 948 | -10/Mines | Discovered new exit (range 15) 1023 | -10/Mines | Learned location of Storage (-7) 1070 | -10/Mines | Discovered new exit (range 8) 1146 | -10/Mines | Core integrity fell below 50% 1152 | -10/Mines | Released all parts (4) 1154 | -10/Mines | Core integrity fell below 20% 1154 | -10/Mines | Destroyed by D-53 Grenadier with Mini Grenade Launcher Last Messages --------------- Storage failed. Whatever you do stay away from that place, they've tightened security following our previous successful raids." World map updated: -7/Storage. 01025_ PN-CTN(g): "We scattered so the Unaware couldn't effectively use their advantage in numbers, and I suggest you do the same." 01025_ PN-CTN(g) slips back into the shadows. 01069_ T-07 Excavator is excavating. 01070_ EXIT=FOUND 01104_ U-05 Engineer builds a Wall. 01108_ U-05 Engineer lays Concrete. 01145_ Com. Wheel destroyed. 01145_ Lgt. Assault Rifle destroyed. 01150_ The unstable cave ceiling collapses. 01151_ Lgt. Assault Rifle destroyed. 01152_ Released Lgt. Treads. 01152_ Released Core Shielding. 01152_ Released Ion Engine. 01152_ Released Lrg. Storage Unit. Map ----- +----------------------------------------------------+ | ??????# #???????????# #???????# # | | ??????# #??????###### #???????## [ #= ## | | ??????#% #??????# #????????## #### # ## | | ?????## ##?????# #?????????#### # # # | | ?????# ##????# ######????????????# ## # # | | ?????# ###### #????????????????## ## # | | ?????# #????????????????# | | ?????## #????????????????## | | | ??????# #?????????????#### !=## | | ??????# ##????????????## # ## | | ??????# ###?????????????# #### | | ??????# ##???????????????# ###?# # | | ??????## ##????????????????# ###### | | ???######### #????????????????## # ## | | ??## ##???# #?????????#####?## ## ## | | ??# ##??# #?????????# ### ### ## #? | | ??# ##?# #????????## ####??? ## #? | | ???# #?# #????????# ##???????## #? | | ????# #?# ###??????# ## #?????????# #? | | ????## #?# ##?????# ########????????# #? | | ????## ### ##????## ##???# ####?????# ? | | ???## ### % #?????###?#### ?????####? | | ??## ### %########### d #???????????? | | ?## ! =% #??# #???????? | | ?# =%!